bitfinex-derivatives/quotes_SOLF0:USTF0_20250202
["timestamp","ask_amount","ask_price","bid_price","bid_amount"]
[1738509030861,0.03150946,211.86,211.82,4.7221]
[1738509031356,0.03150946,211.86,211.85,4.7215]
[1738509032558,0.03150946,211.86,211.76,1.4999]
[1738509033060,4.7215,211.85,211.79,4.7228]
[1738509033454,0.03150946,211.86,211.76,1.4999]
[1738509033662,4.75280946,211.86,211.76,1.4999]
[1738509033859,0.03150946,211.86,211.76,1.4999]
[1738509034560,4.7215,211.85,211.8,4.7226]
[1738509035062,4.7215,211.85,211.8,2.76048074]
[1738509035266,4.75280946,211.86,211.8,2.76048074]
[1738509040066,0.03150946,211.86,211.83,4.7219]
[1738509040266,0.03150946,211.86,211.76,1.4999]
[1738509040967,4.7215,211.85,211.76,1.4999]
[1738509041965,0.03150946,211.86,211.76,1.4999]
[1738509042166,4.75270946,211.86,211.81,4.7223]
[1738509044972,4.7222,211.82,211.78,4.7229]
[1738509045166,0.03150946,211.86,211.76,1.4999]
[1738509045366,14.14,211.94,211.75,1.4924]
[1738509045571,0.03144394,211.83,211.75,1.4924]
[1738509047466,0.03144394,211.83,211.82,4.7221]
[1738509050878,0.03144394,211.83,211.75,1.4924]
[1738509050879,0.03144394,211.83,211.8,4.7224]
[1738509051075,0.03144394,211.83,211.75,1.4924]
[1738509052772,0.03144394,211.83,211.79,4.7226]
[1738509053468,0.03144394,211.83,211.75,1.4924]
[1738509054077,0.03144394,211.83,211.75,6.2161]
[1738509054272,0.03144394,211.83,211.75,1.4924]
[1738509054577,4.7226,211.8,211.73,4.724]
[1738509054877,1.4324,211.92,211.73,4.724]
[1738509055375,0.0321924,211.85,211.68,1.5412]
[1738509055572,3.12,211.86,211.68,1.5412]
[1738509055768,4.7231,211.78,211.73,4.7241]
[1738509056577,0.03489508,211.79,211.75,4.7236]
[1738509056773,0.03489508,211.79,211.68,1.5412]
[1738509058367,0.03489508,211.79,211.78,4.723]
[1738509058578,1.4691,211.92,211.68,1.5412]
[1738509058770,1.4691,211.92,211.69,0.86750825]
[1738509058975,4.721,211.88,211.8,4.7223]
[1738509059176,1.4691,211.92,211.68,1.5412]
[1738509059374,1.4691,211.92,211.69,0.86749025]
[1738509059572,4.7208,211.89,211.69,0.86749025]
[1738509059774,0.03390223,211.83,211.78,0.03172094]
[1738509059970,1.4691,211.92,211.78,0.03172094]
[1738509060168,1.4691,211.92,211.75,1.4179]
[1738509060377,52.6464073,211.93,211.85,4.7214]
[1738509060775,4.7194,211.95,211.87,4.721]
[1738509060976,52.77418571,211.97,211.75,1.4179]
[1738509061180,0.03442899,211.93,211.89,0.03285333]
[1738509061373,51.24048571,211.97,211.77,0.86705665]
[1738509061578,0.03274893,211.93,211.89,0.03446635]
[1738509061881,51.24048571,211.97,211.86,3.14]
[1738509062081,51.24048571,211.97,211.87,1.5404]
[1738509062575,31.80581824,212.03,211.93,4.7195]
[1738509062881,0.03474269,212.0,211.96,0.0324788]
[1738509064777,0.03474269,212.0,211.98,4.7185]
[1738509065179,25.55451824,212.03,211.96,0.0324788]
[1738509065582,4.7167,212.07,211.97,4.7186]
[1738509065885,6.1502,212.09,211.96,0.0324788]
[1738509066085,1.434,212.09,212.0,4.7179]
[1738509066482,1.434,212.09,211.87,1.5404]
[1738509066483,0.03129391,212.07,212.02,0.03093051]
[1738509066785,25.55451824,212.16,211.88,0.86665995]
[1738509066985,0.03297141,212.07,212.02,0.03104206]
[1738509067686,4.7173,212.04,212.02,0.03104206]
[1738509067888,0.03297141,212.07,211.9,4.7202]
[1738509068082,1.4355,212.03,211.87,1.5404]
[1738509068781,3.14,212.07,211.87,1.5404]
[1738509068985,0.03234068,211.97,211.93,0.03243722]
[1738509069180,1.6347,212.13,211.93,0.03243722]
[1738509069387,1.6347,212.13,211.88,0.8668533]
[1738509069687,1.6347,212.13,211.89,1.4894]
[1738509070288,0.03082555,212.03,211.99,0.03410669]
[1738509070484,1.6347,212.13,211.89,1.4894]
[1738509070686,4.7181,212.01,211.99,0.03200467]
[1738509070885,15.7747,212.13,211.89,1.4894]
[1738509071186,0.03418157,212.02,211.98,0.03489009]
[1738509071386,4.7174,212.04,211.97,4.7187]
[1738509071589,0.0339706,212.02,211.98,0.03443883]
[1738509071785,4.7166,212.07,212.0,4.7179]
[1738509072086,0.03296018,212.02,212.0,4.7179]
[1738509072289,4.7161,212.1,212.0,4.7179]
[1738509072586,0.03300625,212.03,211.99,0.03563009]
[1738509072781,1.6347,212.13,211.98,4.7184]
[1738509072987,0.03329908,212.03,211.99,0.03065613]
[1738509073187,1.6347,212.13,211.98,4.7184]
[1738509073487,1.6347,212.13,211.89,1.4894]
[1738509073787,0.03147819,212.08,212.03,0.03117127]
[1738509073987,1.6347,212.13,212.03,0.03117127]
[1738509074181,0.03548887,212.08,212.03,0.03117127]
[1738509074486,4.7172,212.04,212.03,0.03117127]
[1738509076689,4.7172,212.04,211.89,1.4894]
[1738509077490,4.7175,212.03,211.97,4.7186]
[1738509077690,1.6347,212.13,211.89,1.4894]
[1738509077890,0.03493181,212.02,212.0,4.7181]
[1738509078190,1.6347,212.13,211.89,1.4894]
[1738509078490,0.03328877,212.03,211.99,0.03063474]
[1738509078681,1.6347,212.13,211.89,1.4894]
[1738509078885,0.0326615,211.99,211.94,0.03257452]
[1738509079085,1.6347,212.13,211.89,1.4894]
[1738509079283,1.6347,212.13,211.94,0.03101378]
[1738509079486,0.03382224,212.03,211.89,1.4894]
[1738509079689,1.6347,212.13,212.01,0.03480755]
[1738509079889,0.03358825,212.03,211.9,0.86676183]
[1738509080191,1.6347,212.13,211.9,0.86676183]
[1738509080495,1.6347,212.13,211.89,1.4894]
[1738509080693,4.74918087,212.04,211.99,0.03566701]
[1738509080894,0.03178087,212.04,211.89,1.4894]
[1738509081095,1.6347,212.13,211.99,0.03085752]
[1738509081396,0.03437441,211.99,211.89,1.4894]
[1738509081590,1.6347,212.13,211.89,1.4894]
[1738509081795,0.03024275,211.96,211.92,0.03587742]
[1738509081991,4.7179,212.02,211.95,4.719]
[1738509082199,0.03068203,211.96,211.95,4.719]
[1738509082399,4.7179,212.02,211.95,4.719]
[1738509082594,0.0326738,211.98,211.95,4.719]
[1738509082897,0.0326738,211.98,211.93,0.0354176]
[1738509083398,0.0326738,211.98,211.97,4.7188]
[1738509083599,4.7169,212.06,211.93,0.0354176]
[1738509083790,1.6347,212.13,211.9,1.4795]
[1738509084196,4.7165,212.08,211.91,0.86671049]
[1738509084498,1.6347,212.13,211.9,1.4795]
[1738509084798,0.03268414,212.02,211.98,4.7185]
[1738509085098,1.6347,212.13,211.98,4.7185]
[1738509085400,1.6347,212.13,211.9,1.4795]
[1738509085600,0.03228199,212.08,212.03,0.02979431]
[1738509085894,0.03178853,212.08,212.03,0.02979431]
[1738509088393,4.7166,212.07,212.03,0.02979431]
[1738509088595,0.03178853,212.08,212.03,0.02979431]
[1738509088799,0.03178853,212.08,212.03,4.74709431]
[1738509089798,0.03178853,212.08,212.05,4.717]
[1738509090200,0.03178853,212.08,212.03,0.02979431]
[1738509090501,0.03178853,212.08,212.04,4.7172]
[1738509090697,0.03178853,212.08,212.03,0.02979431]
[1738509091901,0.03178853,212.08,212.07,4.7166]
[1738509092101,4.7145,212.17,212.03,0.02979431]
[1738509092302,0.56364971,212.19,212.0,0.86629415]
[1738509093006,0.56364971,212.19,212.03,4.7173]
[1738509093198,4.7165,212.08,212.07,0.03536347]
[1738509093701,4.7168,212.06,212.05,0.03215015]
[1738509094103,0.03268229,212.08,212.01,4.7179]
[1738509094403,0.03268229,212.08,212.03,0.03401676]
[1738509094600,17.26,212.17,212.03,0.03401676]
[1738509094803,0.02988012,212.08,211.94,3.12]
[1738509095006,4.7172,212.04,211.98,4.7183]
[1738509095207,0.03165341,212.03,211.99,0.03604609]
[1738509095406,4.7155,212.12,211.99,4.7183]
[1738509095602,0.03557985,212.03,211.99,0.03465335]
[1738509095806,3.12,212.17,211.91,2.9934]
[1738509096005,3.12,212.17,212.01,4.7177]
[1738509096206,3.12,212.17,211.91,2.9934]
[1738509096401,0.03302043,212.11,212.07,0.03081762]
[1738509096609,0.03593367,212.06,212.03,4.7172]
[1738509096909,0.03115545,212.07,211.91,2.9934]
[1738509097113,3.12,212.17,211.92,0.86667269]
[1738509097306,0.03181057,212.01,211.97,0.03478529]
[1738509097505,4.7167,212.07,211.92,1.5161]
[1738509097804,0.03397231,212.01,211.97,0.03069322]
[1738509098001,0.03397231,212.01,211.92,1.5161]
[1738509098710,0.03397231,212.01,211.99,4.7181]
[1738509098901,0.03397231,212.01,211.92,1.5161]
[1738509099209,0.03397231,212.01,211.99,4.7182]
[1738509100818,4.7156,212.12,211.94,0.03084311]
[1738509101006,4.7156,212.12,211.93,0.86650558]
[1738509101209,4.7156,212.12,212.03,4.7172]
[1738509101706,4.7157,212.11,212.03,4.7172]
[1738509101903,0.03319711,212.1,212.05,0.03048821]
[1738509102111,2.9351,212.18,212.0,3.12]
[1738509102410,0.03057235,212.1,212.05,0.0356971]
[1738509102711,7.78247992,212.24,212.02,0.8662654]
[1738509103005,4.7141,212.19,212.01,2.9921]
[1738509103210,4.7141,212.19,212.11,4.7156]
[1738509103809,0.03246946,212.17,212.13,0.03558451]
[1738509106812,0.03246946,212.17,212.13,4.75078451]
[1738509107723,0.03246946,212.17,212.13,0.03558451]
[1738509107724,4.74696946,212.17,212.13,0.03558451]
[1738509108016,0.03246946,212.17,212.13,0.03558451]
[1738509109818,4.715,212.15,212.13,0.03558451]
[1738509110118,0.03246946,212.17,212.07,4.7164]
[1738509110319,17.0923,212.24,212.07,4.7164]
[1738509110719,4.7139,212.19,212.07,4.7164]
[1738509111017,17.0923,212.24,212.05,4.7168]
[1738509111218,17.0923,212.24,212.02,1.4303]
[1738509111420,4.7159,212.11,212.02,1.4303]
[1738509111620,4.7159,212.11,212.05,4.7168]
[1738509111812,0.03271008,212.09,212.05,4.7168]
[1738509113117,0.03271008,212.09,212.08,4.7163]
[1738509116323,2.9523,212.24,212.12,4.7153]
[1738509116621,4.7141,212.19,212.02,1.4303]
[1738509116822,4.7141,212.19,212.07,4.7165]
[1738509117022,4.7141,212.19,212.02,1.4303]
[1738509117422,0.02982546,212.13,212.12,4.7154]
[1738509117620,4.7136,212.21,212.02,1.4303]
[1738509117818,2.9523,212.24,212.03,0.86620721]
[1738509118524,2.9523,212.24,212.13,4.7152]
[1738509118724,0.03017002,212.16,212.13,4.7152]
[1738509118925,2.9523,212.24,212.13,4.7152]
[1738509119118,0.03079542,212.17,212.13,4.7152]
[1738509119525,0.03079542,212.17,212.13,0.03074823]
[1738509119725,4.7148,212.15,212.13,0.03074823]
[1738509120326,0.03079542,212.17,212.03,3.12]
[1738509120524,1.5178,212.24,212.03,3.12]
[1738509120720,1.5178,212.24,212.17,4.7141]
[1738509120925,4.7127,212.25,212.03,3.12]
[1738509121128,4.7127,212.25,212.04,0.86604497]
[1738509121325,4.7127,212.25,212.04,20.47293506]
[1738509121626,0.0329134,212.17,212.12,0.03509641]
[1738509121822,0.0329134,212.17,212.05,0.86602333]
[1738509122126,0.0329134,212.17,212.16,4.7146]
[1738509122823,0.0329134,212.17,212.13,2.9712]
[1738509122824,0.0329134,212.17,212.14,4.7148]
[1738509123024,0.0329134,212.17,212.13,4.5089]
[1738509123327,0.0329134,212.17,212.15,4.7146]
[1738509123722,0.0329134,212.17,212.13,2.9712]
[1738509123923,0.0329134,212.17,212.12,0.03474337]
[1738509124328,0.0329134,212.17,212.16,4.7146]
[1738509125625,0.0329134,212.17,212.12,0.03474337]
[1738509126419,4.7148,212.16,212.12,0.03474337]
[1738509127123,4.7152,212.13,212.12,0.03474337]
[1738509128325,4.7156,212.12,212.06,4.7166]
[1738509129532,0.03101504,212.11,212.07,0.03146269]
[1738509129732,4.716,212.1,212.07,0.03146269]
[1738509129934,0.03101504,212.11,212.07,0.03146269]
[1738509131427,0.03101504,212.11,212.07,4.74796269]
[1738509132334,0.03101504,212.11,212.07,0.03146269]
[1738509132727,4.7132,212.22,212.15,4.7146]
[1738509132932,4.7132,212.22,212.08,2.9466]
[1738509133335,1.5565,212.28,212.14,4.715]
[1738509133531,3.0763,212.28,212.08,2.9466]
[1738509133736,3.0763,212.28,212.09,3.98596496]
[1738509133933,0.03619117,212.2,212.16,0.03582428]
[1738509135037,1.5198,212.33,212.16,0.03582428]
[1738509135238,1.5198,212.33,212.1,192.86591534]
[1738509135435,4.7112,212.32,212.17,4.7142]
[1738509135739,1.5198,212.33,212.18,1.4739]
[1738509136036,6.2308,212.33,212.23,4.7488781]
[1738509136236,0.03612632,212.28,212.23,4.7488781]
[1738509136534,0.03612632,212.28,212.23,0.0360781]
[1738509137843,4.7122,212.27,212.23,0.0360781]
[1738509138036,0.03612632,212.28,212.23,0.0360781]
[1738509139644,0.03612632,212.28,212.23,4.7490781]
[1738509139842,0.03612632,212.28,212.23,0.0360781]
[1738509142347,0.03612632,212.28,212.18,1.4739]
[1738509143446,0.03612632,212.28,212.21,0.03263048]
[1738509144247,0.03612632,212.28,212.22,4.7132]
[1738509144546,0.03612632,212.28,212.21,0.03263048]
[1738509144748,0.03612632,212.28,212.24,4.7126]
[1738509145148,0.03612632,212.28,212.22,1.4467]
[1738509145844,0.03612632,212.28,212.23,4.7128]
[1738509146145,0.03612632,212.28,212.22,1.4467]
[1738509147747,0.03612632,212.28,212.25,4.7125]
[1738509148444,0.03612632,212.28,212.23,4.7128]
[1738509148648,0.03612632,212.28,212.21,0.03263048]
[1738509149345,0.03612632,212.28,212.22,4.713]
[1738509150646,0.03612632,212.28,212.27,4.7121]
[1738509150950,200.34797992,212.49,212.22,1.4352]
[1738509151145,4.4095,212.48,212.23,0.86538962]
[1738509151449,4.4095,212.48,212.22,1.4352]
[1738509151647,4.4095,212.48,212.23,0.86535048]
[1738509151850,4.7095,212.39,212.32,4.711]
[1738509152051,0.03597707,212.38,212.33,0.03323463]
[1738509152751,4.74577707,212.38,212.34,9.2194445]
[1738509152951,0.03597707,212.38,212.33,0.03323463]
[1738509153343,4.7106,212.34,212.33,0.03323463]
[1738509153645,0.03597707,212.38,212.25,9.2194445]
[1738509153844,4.4095,212.39,212.25,9.2194445]
[1738509154554,4.7115,212.3,212.25,13.9319445]
[1738509154748,0.03499768,212.34,212.25,9.2194445]
[1738509154952,9.2194445,212.37,212.25,0.03210343]
[1738509155246,0.03187372,212.32,212.25,0.03210343]
[1738509155847,4.7119,212.29,212.25,0.03210343]
[1738509159451,0.03187372,212.32,212.25,0.03210343]
[1738509159752,0.03187372,212.32,212.26,9.2194445]
[1738509160155,0.03187372,212.32,212.28,4.7119]
[1738509160653,0.03187372,212.32,212.25,0.03210343]
[1738509161646,4.7121,212.27,212.25,0.03210343]
[1738509162052,0.03187372,212.32,212.25,0.03210343]
[1738509162355,4.7117,212.29,212.25,0.03210343]
[1738509163253,0.03187372,212.32,212.26,9.2194445]
[1738509163455,0.03187372,212.32,212.29,9.2194445]
[1738509164955,0.03187372,212.32,212.31,9.2194445]
[1738509165152,4.7098,212.38,212.33,4.7107]
[1738509165353,4.7098,212.38,212.35,9.2194445]
[1738509169760,4.71,212.37,212.35,9.2194445]
[1738509170857,0.03281795,212.39,212.37,4.7098]
[1738509171059,0.03281795,212.39,212.38,9.2194445]
[1738509171456,1.5291,212.51,212.38,9.2194445]
[1738509171760,1.5291,212.51,212.47,9.2194445]
[1738509172160,6.2359,212.51,212.47,9.2194445]
[1738509172656,1.56453337,212.51,212.47,9.25414172]
[1738509172856,4.7071,212.5,212.47,9.25414172]
[1738509173363,1.56453337,212.51,212.47,9.25414172]
[1738509173558,0.03543337,212.51,212.47,9.25414172]
[1738509174061,4.74223337,212.51,212.47,9.25414172]
[1738509175663,0.03543337,212.51,212.47,13.96184172]
[1738509175875,0.03543337,212.51,212.5,9.2194445]
[1738509177371,0.03543337,212.51,212.47,9.25414172]
[1738509178772,4.74223337,212.51,212.47,9.25414172]
[1738509179073,0.03543337,212.51,212.47,0.03469722]
[1738509179367,4.7071,212.5,212.47,0.03469722]
[1738509179574,0.03543337,212.51,212.47,0.03469722]
[1738509180075,4.7075,212.48,212.47,0.03469722]
[1738509180471,1.4472,212.5,212.38,9.2194445]
[1738509180669,4.7086,212.43,212.38,9.2194445]
[1738509180973,2.9558,212.5,212.38,9.2194445]
[1738509181570,0.03093567,212.46,212.44,9.2194445]
[1738509182468,0.03093567,212.46,212.42,0.03118167]
[1738509183575,4.73903567,212.46,212.42,0.03118167]
[1738509183764,0.03093567,212.46,212.42,0.03118167]
[1738509183965,0.03093567,212.46,212.42,4.73988167]
[1738509184171,0.03093567,212.46,212.42,0.03118167]
[1738509184375,0.03093567,212.46,212.45,9.2194445]
[1738509184578,0.03093567,212.46,212.45,13.9275445]
[1738509185075,0.03093567,212.46,212.45,9.2194445]
[1738509190576,4.7083,212.44,212.43,0.03195982]
[1738509191082,0.03093567,212.46,212.43,0.03195982]
[1738509191878,4.7083,212.44,212.43,0.03195982]
[1738509193083,0.03093567,212.46,212.43,0.03195982]
[1738509193479,4.7082,212.45,212.43,0.03195982]
[1738509195177,0.03093567,212.46,212.43,0.03195982]
[1738509195375,4.7083,212.44,212.43,5.982e-05]
[1738509196785,28.0677445,212.44,212.43,5.982e-05]
[1738509199182,4.7083,212.44,212.43,5.982e-05]
[1738509200980,28.0677445,212.44,212.43,5.982e-05]
[1738509201683,32.578889,212.44,212.22,4.3956]
[1738509201988,9.2194445,212.33,212.21,9.2194445]
[1738509202187,1.4558,212.32,212.21,13.9328445]
[1738509202389,1.4558,212.32,212.21,9.2194445]
[1738509202884,4.7121,212.27,212.24,0.03253969]
[1738509203088,0.03243022,212.29,212.24,9.25198419]
[1738509203286,0.03243022,212.29,212.24,13.96478419]
[1738509203491,0.03243022,212.29,212.24,9.25198419]
[1738509203990,4.7126,212.25,212.24,0.03253969]
[1738509204187,0.03243022,212.29,212.24,0.03253969]
[1738509204493,4.7124,212.26,212.24,0.03253969]
[1738509206390,0.03243022,212.29,212.24,4.74533969]
[1738509206693,0.03243022,212.29,212.24,0.03253969]
[1738509207695,4.7124,212.26,212.24,0.03253969]
[1738509208695,0.03243022,212.29,212.24,0.03253969]
[1738509210195,4.7126,212.25,212.24,0.03253969]
[1738509210697,4.7123,212.27,212.24,0.03253969]
[1738509210899,0.03243022,212.29,212.24,0.03253969]
[1738509213498,0.03243022,212.29,212.24,14.80003985]
[1738509213904,0.03243022,212.29,212.26,4.7121]
[1738509218302,0.03243022,212.29,212.24,14.80003985]
[1738509218510,0.03243022,212.29,212.27,4.7121]
[1738509219400,0.03243022,212.29,212.25,1.4312]
[1738509219704,14.14,212.43,212.28,14.76750016]
[1738509219909,4.5486,212.45,212.28,14.76750016]
[1738509220110,1.4286,212.45,212.32,14.76750016]
[1738509220310,1.4286,212.45,212.36,14.76750016]
[1738509220607,47.80393452,212.47,212.36,14.76750016]
[1738509220803,0.03157609,212.42,212.38,0.0332801]
[1738509223508,0.03157609,212.42,212.38,8.01e-05]
[1738509223702,4.7094,212.39,212.38,8.01e-05]
[1738509224703,13.93620371,212.39,212.38,8.01e-05]
[1738509225812,4.7122,212.27,212.23,9.22680371]
[1738509226007,23.36680371,212.39,212.23,9.22680371]
[1738509226008,9.22680371,212.35,212.23,9.22680371]
[1738509226207,30.85220371,212.41,212.26,9.22680371]
[1738509226408,16.71220371,212.41,212.29,9.22680371]
[1738509226604,7.4854,212.41,212.32,9.22680371]
[1738509226809,0.02976057,212.39,212.34,0.03202519]
[1738509227006,4.71,212.37,212.34,0.03202519]
[1738509227205,0.02976057,212.39,212.34,0.03202519]
[1738509228005,0.02976057,212.39,212.35,9.22680371]
[1738509228411,0.02976057,212.39,212.38,9.22680371]
[1738509228609,0.02976057,212.39,212.37,4.7098]
[1738509229109,4.4886,212.51,212.36,14.74496277]
[1738509230408,4.73851757,212.46,212.41,0.0327206]
[1738509230611,0.03051757,212.46,212.41,0.0327206]
[1738509231418,0.03051757,212.46,212.42,4.7087]
[1738509232321,0.03051757,212.46,212.41,0.0327206]
[1738509232322,0.03051757,212.46,212.44,14.74496277]
[1738509234020,0.03051757,212.46,212.42,1.5396]
[1738509234413,4.73861757,212.46,212.42,1.5396]
[1738509235224,0.03051757,212.46,212.42,1.5396]
[1738509235723,0.03051757,212.46,212.44,4.7083]
[1738509236023,0.03051757,212.46,212.42,2.9726]
[1738509236713,0.03051757,212.46,212.43,1.5113]
[1738509236914,4.7069,212.51,212.44,14.74496277]
[1738509238116,0.03129366,212.5,212.45,0.02990698]
[1738509238316,4.73829366,212.5,212.45,4.73800698]
[1738509240218,0.03129366,212.5,212.46,4.7079]
[1738509240419,0.03129366,212.5,212.45,0.02990698]
[1738509241020,4.7079,212.46,212.45,0.02990698]
[1738509241322,4.7079,212.46,212.45,6.98e-06]
[1738509256043,18.8479,212.46,212.45,6.98e-06]
[1738509256239,4.7105,212.35,212.31,10.67353979]
[1738509256637,9.21953979,212.44,212.31,10.67353979]
[1738509256847,4.7106,212.34,212.31,10.67353979]
[1738509257136,23.35953979,212.44,212.31,10.67353979]
[1738509257347,0.02985025,212.35,212.3,0.03328114]
[1738509257542,9.21953979,212.38,212.25,9.21953979]
[1738509257737,0.0354857,212.35,212.3,0.02999199]
[1738509257935,4.7112,212.31,212.3,0.02999199]
[1738509258348,0.0354857,212.35,212.3,0.02999199]
[1738509258949,0.0354857,212.35,212.31,9.21953979]
[1738509260848,0.0354857,212.35,212.3,0.02999199]
[1738509262448,4.711,212.33,212.3,0.02999199]
[1738509262945,0.0354857,212.35,212.3,0.02999199]
[1738509263452,4.7458857,212.35,212.3,0.02999199]
[1738509263946,4.7108,212.33,212.3,0.02999199]
[1738509264247,0.0354857,212.35,212.3,0.02999199]
[1738509266549,4.7112,212.31,212.3,9.199e-05]
[1738509270453,18.8512,212.31,212.3,9.199e-05]
[1738509270953,28.89744406,212.31,212.1,2.891]
[1738509271157,28.89744406,212.25,212.1,2.891]
[1738509271451,4.7137,212.2,212.1,2.891]
[1738509271652,3.12,212.23,212.1,2.891]
[1738509271849,17.26,212.23,212.1,2.891]
[1738509272049,4.7148,212.15,212.14,0.03327558]
[1738509275150,4.7148,212.15,212.07,14.75744406]
[1738509275351,1.5558,212.18,212.03,14.75744406]
[1738509275546,1.5558,212.18,212.03,19.47474406]
[1738509276152,4.7159,212.1,212.03,19.47474406]
[1738509276356,4.7159,212.1,212.08,0.03254706]
[1738509279250,0.03287447,212.11,212.08,0.03254706]
[1738509280057,4.7161,212.09,212.08,0.03254706]
[1738509280258,4.7161,212.09,212.08,4.706e-05]
[1738509281065,13.96660452,212.09,212.08,4.706e-05]
[1738509281455,4.7185,211.99,211.95,9.25050452]
[1738509281657,4.7185,211.99,211.93,4.7197]
[1738509281855,4.7185,211.99,211.92,9.25050452]
[1738509282662,0.03584504,211.98,211.93,0.03399048]
[1738509286167,4.7194,211.94,211.93,9.048e-05]
[1738509294070,4.7192,211.95,211.93,9.048e-05]
[1738509294473,0.03584504,211.98,211.93,9.048e-05]
[1738509294773,4.75444504,211.98,211.93,9.048e-05]
[1738509294971,0.03584504,211.98,211.93,9.048e-05]
[1738509295166,4.719,211.96,211.93,9.048e-05]
[1738509295864,4.7194,211.94,211.93,9.048e-05]
[1738509299272,0.03584504,211.98,211.93,9.048e-05]
[1738509299777,4.7194,211.95,211.93,9.048e-05]
[1738509299982,0.03584504,211.98,211.93,9.048e-05]
[1738509300675,4.7194,211.94,211.93,9.048e-05]
[1738509302278,4.7191,211.96,211.93,9.048e-05]
[1738509302579,0.03584504,211.98,211.93,9.048e-05]
[1738509302879,4.7189,211.97,211.93,9.048e-05]
[1738509303080,0.03584504,211.98,211.93,9.048e-05]
[1738509304677,4.75444504,211.98,211.93,9.048e-05]
[1738509305486,0.03584504,211.98,211.93,9.048e-05]
[1738509305679,0.03584504,211.98,211.94,9.25680403]
[1738509305980,17.26,212.1,211.97,9.25680403]
[1738509306282,23.39680403,212.08,211.94,9.25680403]
[1738509306481,14.14,212.04,211.92,3.044]
[1738509306981,15.6659,212.04,211.92,3.044]
[1738509307280,4.7195,211.94,211.88,9.25680403]
[1738509307481,4.7195,211.94,211.85,3.12]
[1738509307681,4.7195,211.94,211.89,0.032777]
[1738509307876,0.0322064,211.92,211.89,0.032777]
[1738509309080,4.7201,211.91,211.89,0.032777]
[1738509309683,4.7203,211.9,211.89,0.032777]
[1738509311485,4.7201,211.91,211.89,0.032777]
[1738509312383,0.0322064,211.92,211.89,0.032777]
[1738509312688,4.7203,211.9,211.89,0.032777]
[1738509312890,0.0322064,211.92,211.89,0.032777]
[1738509313392,0.0322064,211.92,211.89,4.753277]
[1738509313691,0.0322064,211.92,211.89,0.032777]
[1738509313986,4.7201,211.91,211.89,0.032777]
[1738509314890,4.7521064,211.92,211.89,0.032777]
[1738509315391,0.0322064,211.92,211.89,0.032777]
[1738509315590,4.7203,211.9,211.89,0.032777]
[1738509316192,4.722,211.83,211.7,160.6017602]
[1738509316389,3.0079,211.91,211.75,1.4491]
[1738509317192,4.7221,211.83,211.75,1.4491]
[1738509317395,3.0079,211.91,211.75,6.1728]
[1738509317593,0.03579361,211.85,211.75,1.4491]
[1738509317786,4.7224,211.81,211.75,1.4491]
[1738509318501,0.03447369,211.8,211.75,1.4491]
[1738509320194,1.4854,211.96,211.75,1.4491]
[1738509320396,4.6054,211.96,211.75,1.4491]
[1738509321289,0.03439834,211.88,211.83,0.03059604]
[1738509321599,4.75539834,211.88,211.81,4.7223]
[1738509321794,4.6054,211.96,211.83,0.03408503]
[1738509321993,0.03291688,211.87,211.75,1.4491]
[1738509322298,4.6054,211.96,211.87,0.03292084]
[1738509322499,4.6054,211.96,211.75,1.4491]
[1738509322793,4.7206,211.89,211.75,1.4491]
[1738509322997,0.03273812,211.88,211.83,0.03532705]
[1738509324199,4.7217,211.84,211.83,0.03532705]
[1738509330906,4.7217,211.84,211.83,2.705e-05]
[1738509333802,18.8617,211.84,211.83,2.705e-05]
[1738509334402,4.7217,211.84,211.83,2.705e-05]
[1738509334611,7.8417,211.84,211.83,2.705e-05]
[1738509334800,21.9817,211.84,211.83,2.705e-05]
[1738509336509,4.7261,211.65,211.5,192.0]
[1738509336705,17.26,211.72,211.51,0.86831139]
[1738509336904,3.007,211.71,211.51,0.86831139]
[1738509337101,4.7262,211.64,211.5,4.5717]
[1738509337306,4.4652,211.71,211.5,4.5717]
[1738509337509,4.4652,211.71,211.6,4.727]
[1738509337707,0.03580796,211.63,211.5,4.5717]
[1738509337903,4.7255,211.67,211.5,4.5717]
[1738509338109,0.03202124,211.59,211.58,4.7275]
[1738509338308,4.7254,211.68,211.58,4.7275]
[1738509338606,0.03417922,211.61,211.5,4.5717]
[1738509339214,0.03417922,211.61,211.54,4.7283]
[1738509339412,0.03417922,211.61,211.5,4.5717]
[1738509340913,4.76097922,211.61,211.55,4.7281]
[1738509341114,0.03417922,211.61,211.5,4.5717]